bitfinex/quotes_SOLUSD_20240925
["timestamp","ask_amount","ask_price","bid_price","bid_amount"]
[1727263134829,0.2440557,150.65,150.63,1.32742686]
[1727263135027,0.2440557,150.65,150.62,10.85871601]
[1727263136751,0.2440557,150.65,150.63,23.776884]
[1727263139646,0.2440557,150.65,150.63,23.776884]
[1727263139953,0.2440557,150.65,150.63,34.63560001]
[1727263140544,0.2440557,150.65,150.59,64.10450136]
[1727263140848,0.2440557,150.65,150.59,10.85871601]
[1727263141235,0.2440557,150.65,150.6,10.85871601]
[1727263141457,0.2440557,150.65,150.59,10.85871601]
[1727263141756,0.2440557,150.65,150.6,10.85871601]
[1727263142052,0.2440557,150.65,150.6,23.776884]
[1727263142053,15.8521557,150.65,150.6,23.776884]
[1727263143152,15.8521557,150.65,150.58,10.85871601]
[1727263143339,15.8521557,150.65,150.57,7.86111923]
[1727263143340,15.8521557,150.65,150.57,18.71983524]
[1727263144949,15.8521557,150.65,150.58,23.776884]
[1727263145337,15.8521557,150.65,150.57,10.85871601]
[1727263147163,15.8521557,150.65,150.55,23.776884]
[1727263147458,16.6594,150.63,150.56,10.85871601]
[1727263147758,16.6594,150.63,150.57,23.776884]
[1727263151857,16.6594,150.63,150.56,10.85871601]
[1727263154664,16.6594,150.63,150.45,16.0962107]
[1727263154665,6.2472,150.62,150.51,99.37579524]
[1727263154841,6.2472,150.62,150.52,12.01421739]
[1727263154842,16.0574,150.61,150.52,12.01421739]
[1727263155168,16.0574,150.61,150.51,99.37579524]
[1727263155169,16.0574,150.61,150.53,10.85871601]
[1727263157270,16.0574,150.61,150.52,23.776884]
[1727263157559,16.0574,150.61,150.53,10.85871601]
[1727263158360,16.0574,150.61,150.52,23.776884]
[1727263158868,16.0574,150.61,150.51,23.776884]
[1727263159359,6.3558,150.6,150.52,10.85871601]
[1727263159565,15.5026,150.59,150.51,34.63560001]
[1727263160641,15.5026,150.59,150.52,10.85871601]
[1727263162738,15.5026,150.59,150.5,6.05644739]
[1727263162943,15.5859,150.55,150.49,0.2440557]
[1727263189498,13.1454241,150.56,150.49,0.2440557]
[1727263189499,6.9449241,150.56,150.49,34.87965571]
[1727263189675,6.9449241,150.56,150.52,10.85871601]
[1727263189876,16.0185,150.6,150.53,1.32846419]
[1727263190201,16.0185,150.6,150.53,30.0]
[1727263191179,16.0185,150.6,150.49,11.10277171]
[1727263191406,16.0185,150.6,150.5,30.0]
[1727263192303,16.0185,150.6,150.49,11.10277171]
[1727263192483,16.0185,150.6,150.5,10.85871601]
[1727263195493,16.0185,150.6,150.51,30.0]
[1727263195494,35.9785,150.6,150.51,30.0]
[1727263195691,16.0185,150.6,150.51,30.0]
[1727263197003,16.0185,150.6,150.51,31.32863836]
[1727263198295,16.0185,150.6,150.51,30.0]
[1727263199713,6.4792,150.58,150.49,11.10277171]
[1727263200088,6.4792,150.58,150.49,12.43151401]
[1727263200696,6.4792,150.58,150.49,11.10277171]
[1727263203505,6.4792,150.58,150.49,0.2440557]
[1727263203716,23.776884,150.56,150.49,0.2440557]
[1727263204893,15.5783,150.57,150.49,0.2440557]
[1727263205590,15.5783,150.57,150.5,1.32875167]
[1727263205793,15.5783,150.57,150.49,0.2440557]
[1727263206600,23.776884,150.56,150.49,0.2440557]
[1727263207222,15.5783,150.57,150.49,1.57296724]
[1727263207390,15.5783,150.57,150.49,12.43168325]
[1727263207594,15.5783,150.57,150.5,10.85871601]
[1727263207807,15.5783,150.57,150.51,12.18741024]
[1727263208518,15.5783,150.57,150.51,10.85871601]
[1727263210929,15.5783,150.57,150.49,11.10277171]
[1727263211917,15.5783,150.57,150.5,1.32862222]
[1727263212110,15.5783,150.57,150.49,11.10277171]
[1727263213522,15.5783,150.57,150.49,0.2440557]
[1727263215397,15.5783,150.57,150.49,24.0209397]
[1727263215602,15.5783,150.57,150.49,34.87965571]
[1727263216229,15.5783,150.57,150.49,11.10277171]
[1727263216721,15.5783,150.57,150.49,0.2440557]
[1727263220427,15.5783,150.57,150.49,24.0209397]
[1727263220732,15.5783,150.57,150.49,0.2440557]
[1727263221543,15.5783,150.57,150.49,1.57279414]
[1727263223301,15.5783,150.57,150.5,10.85871601]
[1727263223509,15.5783,150.57,150.51,1.32854258]
[1727263224201,15.5783,150.57,150.5,10.85871601]
[1727263228523,15.5783,150.57,150.51,1.32849329]
[1727263228721,15.5783,150.57,150.5,10.85871601]
[1727263229214,15.5783,150.57,150.51,1.32847326]
[1727263229420,15.5783,150.57,150.5,10.85871601]
[1727263230422,15.5783,150.57,150.51,23.776884]
[1727263233247,15.5783,150.57,150.5,10.85871601]
[1727263233442,15.5783,150.57,150.49,0.2440557]
[1727263233840,20.0,150.56,150.49,0.2440557]
[1727263234139,15.3243,150.55,150.49,0.2440557]
[1727263235325,6.5505,150.54,150.49,0.2440557]
[1727263282902,20.0,150.53,150.49,0.2440557]
[1727263286008,13.4881249,150.54,150.49,0.2440557]
[1727263291737,20.0,150.53,150.49,0.2440557]
[1727263320427,6.9376249,150.54,150.49,0.2440557]
[1727263320632,19.04530263,150.6,150.49,1.57271361]
[1727263320925,19.04530263,150.6,150.49,17.58541361]
[1727263320926,22.49718827,150.6,150.49,17.58541361]
[1727263321808,20.0,150.59,150.49,17.58541361]
[1727263322711,20.0,150.59,150.49,28.44412962]
[1727263324611,20.0,150.59,150.49,16.2567557]
[1727263324809,23.776884,150.58,150.49,16.2567557]
[1727263325217,20.0,150.57,150.49,16.2567557]
[1727263329217,20.0,150.57,150.49,17.58557864]
[1727263330717,20.0,150.57,150.49,16.2567557]
[1727263333340,20.0,150.57,150.49,17.58558286]
[1727263337842,20.0,150.59,150.49,17.58558286]
[1727263338020,20.0,150.59,150.51,6.1593]
[1727263338225,20.0,150.59,150.52,1.32858029]
[1727263338446,20.0,150.59,150.51,7.48788592]
[1727263342647,20.0,150.59,150.51,6.1593]
[1727263347742,20.0,150.57,150.51,6.1593]
[1727263350249,20.0,150.59,150.51,6.1593]
[1727263358851,23.776884,150.56,150.49,16.2567557]
[1727263359030,23.776884,150.54,150.49,16.2567557]
[1727263359233,20.0,150.53,150.49,0.2440557]
[1727263361732,20.0,150.54,150.49,0.2440557]
[1727263372763,20.0,150.52,150.49,0.2440557]
[1727263378471,20.0,150.54,150.49,0.2440557]
[1727263384694,6.92170322,150.55,150.49,0.2440557]
[1727263384995,23.776884,150.54,150.49,0.2440557]
[1727263389002,20.0,150.53,150.49,0.2440557]
[1727263391298,23.776884,150.5,150.49,0.2440557]
[1727263391508,43.776884,150.5,150.49,0.2440557]
[1727263391692,50.69610485,150.5,150.49,0.2440557]
[1727263393896,50.65590485,150.5,150.49,0.2440557]
[1727263412138,6.91922085,150.5,150.49,0.2440557]
[1727263413312,50.69610485,150.5,150.49,0.2440557]
[1727263425817,70.67610485,150.5,150.49,0.2440557]
[1727263428001,43.776884,150.49,150.45,0.2440557]
[1727263428719,20.0,150.47,150.45,0.2440557]
[1727263435820,6.91516784,150.48,150.45,0.2440557]
[1727263436231,20.0,150.47,150.45,0.2440557]
[1727263448336,23.776884,150.46,150.45,0.2440557]
[1727263448718,43.776884,150.46,150.45,0.2440557]
[1727263457416,63.756884,150.46,150.45,0.2440557]
[1727263457727,23.776884,150.44,150.39,6.2464]
[1727263457925,20.0,150.43,150.39,6.2464]
[1727263458344,20.0,150.44,150.39,6.2464]
[1727263458649,20.0,150.42,150.39,6.2464]
[1727263459645,20.0,150.44,150.39,6.2464]
[1727263459848,20.0,150.42,150.39,6.2464]
[1727263460220,20.0,150.42,150.38,15.9096038]
[1727263468143,23.776884,150.43,150.38,15.9096038]
[1727263476068,43.756884,150.43,150.38,15.9096038]
[1727263476364,23.776884,150.43,150.38,15.9096038]
[1727263483142,20.0,150.42,150.38,0.1072038]
[1727263483475,43.776884,150.41,150.38,0.1072038]
[1727263505780,43.756884,150.39,150.36,0.3161566]
[1727263506001,43.776884,150.37,150.36,0.3161566]
[1727263506205,43.776884,150.37,150.31,23.2630557]
[1727263506206,20.0,150.36,150.31,23.2630557]
[1727263506905,20.0,150.41,150.31,23.2630557]
[1727263507097,6.95658465,150.38,150.31,23.2630557]
[1727263507285,20.0,150.37,150.31,23.2630557]
[1727263514606,6.95601898,150.38,150.31,23.2630557]
[1727263514811,6.95601898,150.38,150.32,10.85871601]
[1727263515110,19.98,150.43,150.33,1.33019491]
[1727263515292,26.93529266,150.43,150.33,1.33019491]
[1727263515629,6.95529266,150.43,150.37,10.85871601]
[1727263515789,6.95529266,150.43,150.4,10.85871601]
[1727263516128,0.2440557,150.47,150.41,12.18822877]
[1727263516398,0.2440557,150.47,150.4,10.85871601]
[1727263516712,0.2440557,150.47,150.41,1.32953015]
[1727263517008,0.2440557,150.47,150.41,31.32953015]
[1727263517579,0.2440557,150.47,150.41,1.32953015]
[1727263518805,0.2440557,150.47,150.4,10.85871601]
[1727263527293,0.2440557,150.47,150.38,32.84941601]
[1727263527517,0.2440557,150.47,150.39,30.0]
[1727263532629,0.2440557,150.47,150.38,32.84941601]
[1727263534617,0.2440557,150.47,150.4,10.85871601]
[1727263538618,0.2440557,150.47,150.41,30.0]
[1727263539605,0.2440557,150.47,150.41,40.85871601]
[1727263544133,0.2440557,150.47,150.41,30.0]
[1727263544805,0.2440557,150.47,150.42,1.32939275]
[1727263545100,0.2440557,150.47,150.41,30.0]
[1727263545630,0.2440557,150.47,150.4,10.85871601]
[1727263549796,0.2440557,150.47,150.41,30.0]
[1727263552648,0.2440557,150.47,150.4,10.85871601]
[1727263553331,0.2440557,150.47,150.41,1.329328]
[1727263555644,0.2440557,150.47,150.42,30.0]
[1727263556516,0.2440557,150.47,150.43,1.32932989]
[1727263557327,0.2440557,150.47,150.42,30.0]
[1727263558144,0.2440557,150.47,150.41,10.85871601]
[1727263558348,0.2440557,150.47,150.43,1.32925826]
[1727263560426,0.2440557,150.47,150.44,1.32925922]
[1727263562628,0.2440557,150.47,150.45,1.32912109]
[1727263563648,0.2440557,150.47,150.44,1.3290952]
[1727263563833,0.2440557,150.47,150.43,10.85871601]
[1727263567739,0.2440557,150.47,150.44,12.18782124]
[1727263567926,0.2440557,150.47,150.46,10.85871601]
[1727263568126,0.2440557,150.47,150.46,12.18755551]
[1727263568636,0.2440557,150.47,150.46,35.96443951]
[1727263569045,0.2440557,150.47,150.46,65.96443951]
[1727263570059,0.2440557,150.47,150.46,64.63560001]
[1727263572249,0.2440557,150.52,150.46,64.63560001]
[1727263572250,0.2440557,150.52,150.51,10.85871601]
[1727263573760,0.2440557,150.52,150.51,34.63560001]
[1727263574052,0.2440557,150.56,150.51,34.63560001]
[1727263574053,0.2440557,150.56,150.52,23.776884]
[1727263574353,0.2440557,150.56,150.55,10.85871601]
[1727263574554,0.2440557,150.56,150.51,30.0]
[1727263574555,0.2440557,150.56,150.53,10.85871601]
[1727263574927,0.2440557,150.56,150.51,30.0]
[1727263575550,0.2440557,150.56,150.51,23.776884]
[1727263575764,0.2440557,150.56,150.48,21.9059]
[1727263576057,0.2440557,150.56,150.49,34.63560001]
[1727263576974,0.2440557,150.56,150.48,21.9059]
[1727263577131,0.2440557,150.56,150.47,10.85871601]
[1727263578363,0.2440557,150.56,150.48,23.776884]
[1727263578649,15.6538,150.55,150.47,10.85871601]
[1727263579638,15.6538,150.55,150.48,1.32872645]
[1727263582967,15.6538,150.55,150.49,1.32872444]
[1727263583880,15.6538,150.55,150.47,10.85871601]
[1727263584165,15.6538,150.55,150.48,1.32872406]
[1727263586267,15.6538,150.55,150.47,10.85871601]
[1727263591074,15.6538,150.55,150.48,12.18743679]
[1727263591471,15.6538,150.55,150.49,34.63560001]
[1727263591669,15.6538,150.55,150.5,10.85871601]
[1727263591882,15.6538,150.55,150.49,10.85871601]
[1727263597351,15.6538,150.55,150.45,23.776884]
[1727263597557,15.6538,150.55,150.49,23.776884]
[1727263598582,15.6538,150.55,150.5,1.32851794]
[1727263599501,15.6538,150.55,150.49,23.776884]
[1727263599781,15.6538,150.55,150.5,1.32851883]
[1727263600474,15.6538,150.55,150.49,23.776884]
[1727263601478,15.6538,150.55,150.48,10.85871601]
[1727263601860,15.6538,150.55,150.49,1.32861731]
[1727263605081,15.6538,150.55,150.52,10.85871601]
[1727263605280,0.2440557,150.56,150.53,1.32833582]
[1727263606275,0.2440557,150.56,150.52,10.85871601]
[1727263609087,0.2440557,150.56,150.53,1.32822003]
[1727263610175,0.2440557,150.56,150.52,10.85871601]
[1727263610567,0.2440557,150.56,150.53,1.32821939]
[1727263613090,0.2440557,150.56,150.52,10.85871601]
[1727263615484,0.2440557,150.56,150.53,23.776884]
[1727263615685,0.2440557,150.56,150.54,1.32810963]
[1727263615887,0.2440557,150.56,150.54,10.85871601]
[1727263618475,0.2440557,150.56,150.52,10.85871601]
[1727263620299,0.2440557,150.56,150.54,23.776884]
[1727263620506,0.2440557,150.56,150.55,35.96368522]
[1727263620982,0.2440557,150.56,150.54,10.85871601]
[1727263622027,0.2440557,150.56,150.55,35.96367531]
[1727263624287,0.2440557,150.56,150.55,34.63560001]
[1727263624488,0.2440557,150.56,150.55,23.776884]
[1727263625188,0.2440557,150.56,150.54,10.85871601]
[1727263626586,0.2440557,150.56,150.55,1.32805344]
[1727263627286,0.2440557,150.56,150.54,10.85871601]
[1727263630403,0.2440557,150.56,150.49,120.32358467]
[1727263630610,0.2440557,150.56,150.52,10.85871601]
[1727263631502,0.2440557,150.56,150.54,10.85871601]
[1727263631893,0.2440557,150.56,150.55,23.776884]
[1727263635313,0.2440557,150.56,150.55,35.96362395]
[1727263640301,0.2440557,150.56,150.55,34.63560001]
[1727263643722,0.2440557,150.56,150.55,35.96332228]
[1727263646406,0.0721009,150.59,150.55,35.96332228]
[1727263646704,0.0721009,150.59,150.58,34.63560001]
[1727263646919,0.0721009,150.59,150.58,35.96328346]
[1727263647307,0.0721009,150.59,150.58,34.63560001]
[1727263648522,0.0721009,150.59,150.58,23.776884]
[1727263648708,0.0721009,150.59,150.57,23.776884]
[1727263649103,0.0721009,150.59,150.57,10.85871601]
[1727263650531,0.0721009,150.59,150.56,10.85871601]
[1727263650826,0.0721009,150.59,150.57,23.776884]
[1727263653715,0.0721009,150.59,150.56,10.85871601]
[1727263654013,0.0721009,150.59,150.57,1.32789541]
[1727263654533,0.0721009,150.59,150.56,34.63560001]
[1727263656415,0.0721009,150.59,150.56,23.776884]
[1727263657745,0.0721009,150.59,150.51,7.40375296]
[1727263658040,0.0721009,150.59,150.54,23.776884]
[1727263659642,0.0721009,150.59,150.54,34.63560001]
[1727263660355,0.0721009,150.59,150.56,10.85871601]
[1727263660551,0.0721009,150.59,150.57,1.32789788]
[1727263661543,0.0721009,150.59,150.57,34.63560001]
[1727263661740,0.0721009,150.59,150.57,10.85871601]
[1727263664829,0.0721009,150.59,150.58,1.32784736]
[1727263665943,0.0721009,150.59,150.57,10.85871601]
[1727263675045,0.0721009,150.59,150.58,25.10464644]
[1727263676548,0.0721009,150.59,150.58,23.776884]
[1727263676724,0.0721009,150.59,150.58,34.63560001]
[1727263677057,0.0721009,150.59,150.5,28.41931526]
[1727263677342,0.0721009,150.59,150.5,21.4963]
[1727263677528,0.0721009,150.59,150.52,10.85871601]
[1727263677957,0.0721009,150.59,150.53,1.32812831]
[1727263678135,0.0721009,150.59,150.54,10.85871601]
[1727263678736,0.0721009,150.59,150.55,23.776884]
[1727263684876,0.0721009,150.59,150.55,34.63560001]
[1727263685374,0.0721009,150.59,150.55,23.776884]
[1727263685859,0.0721009,150.59,150.54,23.776884]
[1727263686464,0.0721009,150.59,150.55,1.32807751]
[1727263686644,0.0721009,150.59,150.57,10.85871601]
[1727263686845,0.0721009,150.59,150.58,1.32776783]
[1727263687655,0.0721009,150.59,150.58,35.96336784]
[1727263687843,0.0721009,150.59,150.58,34.63560001]
[1727263688338,0.0721009,150.59,150.57,23.776884]
[1727263688554,0.0721009,150.59,150.56,10.85871601]
[1727263690074,0.0721009,150.59,150.57,1.32784673]
[1727263690249,0.0721009,150.59,150.58,23.776884]
[1727263690447,0.0721009,150.59,150.58,34.63560001]
[1727263691775,0.0721009,150.59,150.56,10.85871601]
[1727263692082,0.0721009,150.59,150.57,23.776884]
[1727263692244,0.0721009,150.59,150.56,10.85871601]
[1727263692442,0.0721009,150.59,150.55,10.85871601]
[1727263692847,0.0721009,150.59,150.56,23.776884]
[1727263694274,0.0721009,150.59,150.56,34.63560001]
[1727263695160,0.0721009,150.59,150.57,1.32787755]
[1727263695593,0.0721009,150.59,150.56,34.63560001]
[1727263697657,0.0721009,150.59,150.58,34.63560001]
[1727263703960,0.0721009,150.59,150.58,23.776884]
[1727263705757,0.0721009,150.59,150.56,10.85871601]
[1727263707286,0.0721009,150.59,150.57,23.776884]
[1727263709696,0.0721009,150.59,150.53,23.776884]
[1727263709879,0.0721009,150.59,150.56,34.63560001]
[1727263710202,0.0721009,150.59,150.52,53.83672957]
[1727263710203,0.0721009,150.59,150.58,34.63560001]
[1727263711680,16.247,150.63,150.58,34.63560001]
[1727263711884,0.130233,150.59,150.58,34.63560001]
[1727263719803,0.130233,150.59,150.58,23.776884]
[1727263720100,0.130233,150.59,150.57,23.776884]
[1727263720400,0.130233,150.59,150.54,10.85871601]
[1727263720587,0.130233,150.59,150.51,22.767]
[1727263720785,0.130233,150.59,150.54,10.85871601]
[1727263722305,0.130233,150.59,150.55,23.776884]
[1727263722482,0.130233,150.59,150.56,12.18666886]
[1727263722896,0.130233,150.59,150.56,10.85871601]
[1727263723591,0.130233,150.59,150.57,23.776884]
[1727263724204,0.130233,150.59,150.56,23.776884]
[1727263725593,0.130233,150.59,150.57,10.85871601]
[1727263726109,0.130233,150.59,150.58,12.18653857]
[1727263726483,0.130233,150.59,150.58,35.96341765]
[1727263727217,0.130233,150.59,150.58,34.63560001]
[1727263729101,0.130233,150.59,150.52,23.776884]
[1727263729301,0.130233,150.59,150.57,10.85871601]
[1727263731202,0.130233,150.59,150.58,1.32785384]
[1727263731714,0.130233,150.59,150.58,10.85871601]
[1727263732305,0.130233,150.59,150.58,34.63560001]
[1727263737160,0.130233,150.59,150.56,10.85871601]
[1727263739500,0.130233,150.59,150.58,10.85871601]
[1727263739706,0.130233,150.59,150.58,34.63560001]
[1727263746916,0.130233,150.59,150.58,35.96301522]
[1727263747117,0.2440557,150.61,150.59,23.776884]
[1727263747314,0.2440557,150.61,150.6,10.85871601]
[1727263747809,0.2440557,150.61,150.6,34.63560001]
[1727263748323,0.2440557,150.61,150.6,56.56000001]
[1727263751724,0.3168133,150.65,150.61,23.776884]
[1727263751955,0.3168133,150.65,150.64,10.85871601]
[1727263752728,0.3168133,150.65,150.64,34.63560001]
[1727263770539,0.3168133,150.65,150.64,35.96257586]
[1727263772754,0.3168133,150.65,150.62,2.36373674]
[1727263772929,0.3168133,150.65,150.63,10.85871601]
[1727263773250,0.3168133,150.65,150.64,10.85871601]
[1727263774244,0.3168133,150.65,150.62,23.776884]
[1727263774749,0.3168133,150.65,150.61,23.776884]
[1727263775329,0.3168133,150.65,150.64,34.63560001]
[1727263783149,0.107104,150.68,150.65,23.776884]
[1727263783465,0.107104,150.68,150.67,34.63560001]
[1727263793073,0.2440557,150.7,150.68,23.776884]
[1727263793258,0.2440557,150.7,150.69,34.63560001]
[1727263805252,0.2440557,150.7,150.69,10.85871601]
[1727263805452,0.2440557,150.7,150.68,10.85871601]
[1727263805968,0.2440557,150.7,150.69,10.85871601]
[1727263806974,0.2440557,150.7,150.65,23.776884]
[1727263807370,0.2440557,150.7,150.69,34.63560001]
[1727263808571,0.2440557,150.7,150.63,54.94651009]
[1727263808775,0.2440557,150.7,150.68,10.85871601]
[1727263810284,0.2440557,150.7,150.69,35.96253363]
[1727263810575,0.2440557,150.7,150.69,34.63560001]
[1727263813776,0.2440557,150.7,150.69,34.63560001]
[1727263815855,0.2440557,150.7,150.69,10.85871601]
[1727263817169,0.2440557,150.7,150.69,34.63560001]
[1727263825523,0.2440557,150.7,150.69,23.776884]
[1727263825807,0.2440557,150.7,150.69,34.63560001]
[1727263830693,0.2440557,150.7,150.69,10.85871601]
[1727263831884,0.2440557,150.7,150.66,51.23772671]
[1727263832083,0.2440557,150.7,150.69,10.85871601]
[1727263832599,0.2440557,150.7,150.69,34.63560001]
[1727263832999,0.2440557,150.7,150.69,23.776884]
[1727263833189,0.2440557,150.7,150.69,10.85871601]
[1727263835997,0.2440557,150.7,150.69,34.63560001]
[1727263851314,0.2440557,150.7,150.64,29.21175296]
[1727263851518,0.2440557,150.7,150.68,10.85871601]
[1727263855611,0.2440557,150.7,150.69,1.32698951]
[1727263855818,0.2440557,150.7,150.68,10.85871601]
[1727263856717,0.2440557,150.7,150.67,10.85871601]
[1727263859435,0.2440557,150.7,150.68,10.85871601]
[1727263860733,0.2440557,150.7,150.69,35.96259196]
[1727263860921,0.2440557,150.7,150.69,34.63560001]
[1727263867043,0.2440557,150.7,150.69,23.776884]
[1727263867343,0.2440557,150.7,150.69,34.63560001]
[1727263870349,0.3168133,150.74,150.69,34.63560001]
[1727263870560,0.3168133,150.74,150.73,34.63560001]
[1727263871651,0.3168133,150.74,150.73,23.776884]
[1727263871824,0.3168133,150.74,150.73,34.63560001]
[1727263872430,0.3168133,150.74,150.72,10.85871601]
[1727263872927,0.3168133,150.74,150.73,34.63560001]
[1727263873346,0.3168133,150.74,150.65,21.4094]
[1727263873569,0.3168133,150.74,150.7,10.85871601]
[1727263873862,0.3168133,150.74,150.72,10.85871601]
[1727263874341,0.3168133,150.74,150.71,10.85871601]
[1727263874650,0.3168133,150.74,150.71,23.776884]
[1727263874848,0.3168133,150.74,150.71,34.63560001]
[1727263875232,0.3168133,150.74,150.72,10.85871601]
[1727263875445,0.3168133,150.74,150.71,34.63560001]
[1727263875634,0.3168133,150.74,150.7,10.85871601]
[1727263876429,0.3168133,150.74,150.69,10.85871601]
[1727263876628,0.3168133,150.74,150.7,23.776884]
[1727263878457,0.3168133,150.74,150.65,21.4094]
[1727263878641,0.3168133,150.74,150.68,10.85871601]
[1727263878849,0.3168133,150.74,150.69,10.85871601]
[1727263879565,0.3168133,150.74,150.7,12.18561309]
[1727263879734,0.3168133,150.74,150.7,10.85871601]
[1727263881748,0.3168133,150.74,150.71,1.32677427]
[1727263883938,0.3168133,150.74,150.72,23.776884]
[1727263884362,0.3168133,150.74,150.71,23.776884]
[1727263885459,0.3168133,150.74,150.71,34.63560001]
[1727263885657,0.3168133,150.74,150.72,1.3265597]
[1727263886460,0.3168133,150.74,150.73,10.85871601]
[1727263886635,0.3168133,150.74,150.73,34.63560001]
[1727263887164,0.107104,150.77,150.73,34.63560001]
[1727263887165,0.107104,150.77,150.75,23.776884]
[1727263887368,0.2440557,150.79,150.77,23.776884]
[1727263887550,0.2440557,150.79,150.78,46.61686034]
[1727263887950,0.2440557,150.79,150.78,65.75814433]
[1727263888269,0.2440557,150.79,150.78,92.66927205]
[1727263888582,0.3168133,150.83,150.79,39.82929571]
[1727263888767,0.3168133,150.83,150.82,10.85871601]
[1727263889059,0.3168133,150.83,150.82,56.91112772]
[1727263889245,15.1515,150.89,150.82,56.91112772]
[1727263889451,15.1515,150.89,150.84,10.85871601]
[1727263890152,15.1515,150.89,150.84,30.0]
[1727263890961,15.1515,150.89,150.79,23.776884]
[1727263891268,15.1515,150.89,150.8,30.0]
[1727263891637,6.0936,150.88,150.8,30.0]
[1727263891963,6.0936,150.88,150.78,10.85871601]
[1727263892263,20.0,150.86,150.73,7.49240089]
[1727263892470,16.5138,150.85,150.74,30.0]
[1727263892763,16.5138,150.85,150.74,40.85871601]
[1727263892764,6.0936,150.84,150.74,40.85871601]
[1727263892962,16.5138,150.83,150.74,30.0]
[1727263893271,16.5138,150.83,150.74,40.85871601]
[1727263894062,16.5138,150.83,150.74,30.0]
[1727263894748,16.5138,150.83,150.72,11.14288341]
[1727263897456,16.5138,150.83,150.74,10.85871601]
[1727263898583,16.5138,150.83,150.73,23.776884]
[1727263899995,23.4397084,150.83,150.73,23.776884]
[1727263900489,20.0,150.82,150.72,0.2841674]
[1727263900792,16.0802,150.81,150.72,0.2841674]
[1727263900993,16.0802,150.81,150.72,11.14288341]
[1727263902300,16.0802,150.81,150.72,0.2841674]
[1727263909476,16.0802,150.81,150.73,23.776884]
[1727263910700,16.0802,150.81,150.72,11.14288341]
[1727263912200,16.4119,150.79,150.72,0.2841674]
[1727263920498,16.4119,150.79,150.72,1.61096945]
[1727263921101,16.4119,150.79,150.72,0.2841674]
[1727263921701,16.4119,150.79,150.72,1.61096943]
[1727263922405,16.4119,150.79,150.72,0.2841674]
[1727263926613,15.7122,150.77,150.72,0.2841674]
[1727263926799,20.0,150.82,150.67,0.2879573]
[1727263926800,43.776884,150.74,150.67,0.2879573]
[1727263927107,23.776884,150.72,150.67,0.2879573]
[1727263927305,20.0,150.71,150.67,0.2879573]
[1727263929316,15.3217,150.7,150.67,0.2879573]
[1727263929986,6.0651,150.69,150.67,0.2879573]
[1727263931995,15.3217,150.7,150.67,0.2879573]
[1727263942418,6.0651,150.73,150.67,0.2879573]
[1727263948134,15.3588,150.74,150.67,0.2879573]
[1727263952013,15.3588,150.74,150.67,0.1729906]
[1727263959137,13.46922219,150.77,150.67,0.1729906]
[1727263959440,23.776884,150.75,150.67,0.1729906]
[1727263959945,23.776884,150.76,150.67,0.1729906]
[1727263960145,20.0,150.75,150.67,0.1729906]
[1727263960334,23.776884,150.76,150.67,11.01442424]
[1727263960539,23.776884,150.76,150.67,12.34165184]
[1727263966720,20.0,150.76,150.67,12.34165184]
[1727263966925,6.92211483,150.75,150.67,12.34165184]
[1727263971836,6.92211483,150.75,150.67,1.5002182]
[1727263972036,6.92211483,150.75,150.67,0.1729906]
[1727263981351,6.92211483,150.75,150.67,11.01442424]
[1727263981552,6.92211483,150.75,150.67,0.1729906]
[1727263981752,23.776884,150.74,150.67,0.1729906]
[1727263984365,43.776884,150.75,150.67,0.1729906]
[1727263987839,63.706884,150.75,150.67,0.1729906]
[1727263988165,43.776884,150.73,150.67,0.1729906]
[1727263990245,6.9334795,150.72,150.67,0.1729906]
[1727263990442,43.776884,150.71,150.67,0.1729906]
[1727263990649,6.9334795,150.72,150.67,22.4446906]
[1727263990855,3.48410263,150.76,150.67,22.4446906]
[1727263991061,24.63552682,150.77,150.67,22.4446906]
[1727263991339,6.93201708,150.73,150.67,22.4446906]
[1727263991544,3.48410263,150.77,150.67,22.4446906]
[1727263991757,6.93174895,150.76,150.67,22.4446906]
[1727263992443,20.0,150.75,150.67,22.4446906]
[1727263992649,23.776884,150.74,150.67,22.4446906]
[1727263994763,23.776884,150.72,150.67,6.7212906]
[1727263996361,20.0,150.75,150.67,6.7212906]
[1727263996663,6.93174895,150.76,150.7,10.84143364]
[1727263996862,6.93174895,150.76,150.67,0.1729906]
[1727263996863,6.93174895,150.76,150.73,16.5631]
[1727263997069,3.48400486,150.77,150.73,16.5631]
[1727264000469,20.0,150.8,150.73,16.5631]
[1727264000862,23.776884,150.79,150.73,16.5631]
[1727264003272,23.776884,150.77,150.73,16.5631]
[1727264004560,23.776884,150.77,150.71,6.4996]